fUST/lending_fUST_20240806
["ID","MTS","AMOUNT","RATE_DAILY","PERIOD"]
[334265228,1722874259498,-500.0,0.00042739,31]
[334265229,1722874259507,-660.63,0.00042739,31]
[334265230,1722874259516,-500.0,0.00042739,31]
[334265231,1722874259526,-500.0,0.00042739,31]
[334265232,1722874259536,-1234.24,0.00042739,31]
[334265233,1722874259547,-10479.54,0.00042739,31]
[334265234,1722874259557,-660.55,0.00042739,31]
[334265235,1722874259567,-500.0,0.00042739,31]
[334265236,1722874259576,-500.0,0.00042739,31]
[334265237,1722874259586,-500.0,0.00042739,31]
[334265238,1722874259596,-918.47,0.00042739,31]
[334265239,1722874259606,-563.34,0.00042739,31]
[334265240,1722874259615,-3929.11,0.00042739,31]
[334265241,1722874259624,-2440.32,0.00042739,21]
[334265242,1722874259635,-841.48,0.00042739,31]
[334265243,1722874259645,-500.0,0.00042739,31]
[334265244,1722874259654,-500.0,0.00042739,31]
[334265245,1722874259663,-1779.23,0.00042739,31]
[334265246,1722874259672,-187.17371259,0.00042739,31]
[334265247,1722874259682,-2467.03,0.00042739,31]
[334265248,1722874259693,-740.56,0.00042739,31]
[334265249,1722874259703,-800.04,0.00042739,31]
[334265250,1722874259713,-547.50505462,0.00042739,31]
[334265251,1722874259724,-500.0,0.00042739,31]
[334265252,1722874259749,-500.0,0.00042739,31]
[334265253,1722874259760,-2122.87,0.00042739,31]
[334265254,1722874259771,-500.0,0.00042739,31]
[334265255,1722874259781,-592.69,0.00042739,31]
[334265256,1722874259791,-500.0,0.00042739,31]
[334265257,1722874259803,-522.51,0.00042739,31]
[334265258,1722874259813,-500.0,0.00042739,31]
[334265259,1722874259823,-500.0,0.00042739,31]
[334265260,1722874259833,-899.44,0.00042739,31]
[334265261,1722874259843,-1014.51,0.00042739,31]
[334265262,1722874259852,-500.0,0.00042739,31]
[334265263,1722874259862,-644.43,0.00042739,31]
[334265264,1722874259871,-500.0,0.00042739,31]
[334265265,1722874259880,-500.0,0.00042739,31]
[334265266,1722874259890,-2451.81,0.00042739,31]
[334265267,1722874259904,-827.38,0.00042739,31]
[334265268,1722874259915,-748.14,0.00042739,31]
[334265269,1722874259924,-686.78,0.00042739,31]
[334265270,1722874259935,-1844.31,0.00042739,31]
[334265271,1722874259945,-500.0,0.00042739,31]
[334265272,1722874259954,-573.47917358,0.00042739,31]
[334265273,1722874259963,-500.0,0.00042739,31]
[334265274,1722874259973,-500.0,0.00042739,31]
[334265275,1722874259992,-680.32,0.00042739,31]
[334265276,1722874260001,-7084.51,0.00042739,31]
[334265277,1722874260012,-2056.8,0.00042739,31]
[334265278,1722874260022,-583.7,0.00042739,31]
[334265279,1722874260032,-392.62152721,0.00042739,31]
[334265280,1722874260042,-712.66,0.00042739,31]
[334265281,1722874260053,-500.0,0.00042739,31]
[334265282,1722874260064,-738.5,0.00042739,31]
[334265283,1722874260074,-3269.39,0.00042739,31]
[334265284,1722874260084,-500.0,0.00042739,31]
[334265285,1722874260094,-500.0,0.00042739,31]
[334265286,1722874260103,-1498.75,0.00042739,31]
[334265287,1722874260112,-2199.83,0.00042739,31]
[334265288,1722874260122,-1113.43,0.00042739,31]
[334265289,1722874260132,-500.0,0.00042739,31]
[334265290,1722874260141,-1138.43,0.00042739,31]
[334265291,1722874260151,-500.0,0.00042739,31]
[334265292,1722874260161,-500.0,0.00042739,31]
[334265293,1722874260170,-500.0,0.00042739,31]
[334265294,1722874260179,-1116.18,0.00042739,31]
[334265295,1722874260189,-500.0,0.00042739,31]
[334265296,1722874260199,-500.0,0.00042739,31]
[334265297,1722874260209,-500.0,0.00042739,31]
[334265298,1722874260219,-808.62,0.00042739,31]
[334265299,1722874260234,-4914.86,0.00042739,31]
[334265300,1722874260246,-1648.38,0.00042739,31]
[334265301,1722874260256,-500.0,0.00042739,31]
[334265302,1722874260266,-500.0,0.00042739,31]
[334265303,1722874260275,-500.0,0.00042739,31]
[334265304,1722874260285,-874.36,0.00042739,31]
[334265305,1722874260295,-500.0,0.00042739,31]
[334265306,1722874260305,-1743.07,0.00042739,31]
[334265307,1722874260315,-1198.64,0.00042739,31]
[334265308,1722874260324,-2211.27,0.00042739,31]
[334265309,1722874260335,-807.29,0.00042739,31]
[334265310,1722874260348,-500.0,0.00042739,31]
[334265311,1722874260357,-500.0,0.00042739,31]
[334265312,1722874260367,-2687.83,0.00042739,31]
[334265313,1722874260377,-500.0,0.00042739,31]
[334265314,1722874260390,-353.58,0.00042739,31]
[334265315,1722874260399,-322.19,0.00042739,31]
[334265316,1722874260411,-468.22,0.00042739,31]
[334265317,1722874260421,-500.0,0.00042739,31]
[334265318,1722874260431,-500.0,0.00042739,31]
[334265319,1722874260441,-500.0,0.00042739,31]
[334265320,1722874260451,-500.0,0.00042739,31]
[334265321,1722874260460,-500.0,0.00042739,31]
[334265322,1722874260471,-388.85,0.00042739,31]
[334265323,1722874260491,-500.0,0.00042739,31]
[334265324,1722874260518,-75.6987892,0.00042739,31]
[334265325,1722874260677,-1473.00074673,0.00042739,31]
[334265326,1722874260704,154.66746495,0.00037799,4]
[334265327,1722874260808,-1559.93026244,0.0003999,3]
[334265328,1722874262019,-1878.16973756,0.0003999,3]
[334265329,1722874262031,-151.0,0.00041095,14]
[334265330,1722874262042,-151.0,0.00041095,14]
[334265331,1722874262052,-151.0,0.00041095,14]
[334265332,1722874262063,-500.0,0.00041095,31]
[334265333,1722874262073,-422.5690395,0.00041095,31]
[334265334,1722874262119,546.74672462,0.00027,120]
[334265335,1722874262162,4000.0,0.0001401,2]
[334265336,1722874262238,616.97897138,0.00037799,4]
[334265337,1722874262285,399.3998448,0.00037799,4]
[334265338,1722874262367,309.3349299,0.00037799,4]
[334265339,1722874268137,4712.37284123,0.00037799,2]
[334265340,1722874268657,1492.75012023,0.00037799,4]
[334265341,1722874269393,3785.54866294,0.00037799,4]
[334265342,1722874271519,3601.91477368,0.00037799,4]
[334265343,1722874275918,218.345205,0.00037799,4]
[334265344,1722874283417,404.72502915,0.00037799,4]
[334265345,1722874291579,11462.50704368,0.00037799,4]
[334265346,1722874304186,250.0,0.00036042,2]
[334265347,1722874340613,2137.84,0.00031148,3]
[334265348,1722874350803,24900.0,0.00030394,2]
[334265365,1722875156153,-170.159426,0.00014247,2]
[334265366,1722875156175,-70.30208639,0.00014247,2]
[334265368,1722875241117,-116.16141961,0.00014247,2]
[334265369,1722875241139,-1643.15842058,0.00019477,7]
[334265370,1722875241161,-21295.03879813,0.00019547,2]
[334265371,1722875241183,-250.35702584,0.00019547,2]
[334265372,1722875241204,-263.0,0.00019998,2]
[334265373,1722875241226,-414.64740725,0.00019999,2]
[334265374,1722875241247,-1632.70804043,0.0002,2]
[334265375,1722875241269,-1931.06605103,0.0002,2]
[334265376,1722875241291,-1162.86940617,0.0002028,2]
[334265377,1722875241312,-1500.0,0.0002028,2]
[334265378,1722875241336,-18134.1871002,0.00020417,2]
[334265379,1722875241357,-197.06630448,0.000209,2]
[334265380,1722875241378,-3180.46585441,0.000209,2]
[334265381,1722875241399,-232.14118712,0.00020999,2]
[334265382,1722875241419,-600.90391779,0.00020999,2]
[334265383,1722875241440,-162.22860515,0.00020999,2]
[334265384,1722875241461,-150.0,0.00021,2]
[334265385,1722875241482,-218.784043,0.00021048,2]
[334265386,1722875241502,-981.21,0.00021048,2]
[334265387,1722875241522,-154.82195475,0.00021532,2]
[334265388,1722875241543,-1797.67795724,0.00021591,10]
[334265389,1722875250100,-202.32204276,0.00021591,10]
[334265390,1722875250122,-2000.0,0.00021598,10]
[334265391,1722875250143,-2000.0,0.00021608,10]
[334265392,1722875250165,-154.79103211,0.00021906,2]
[334265393,1722875250188,-2848.0272935,0.00021906,2]
[334265394,1722875250210,-302.42545213,0.00022,2]
[334265395,1722875250232,-302.36509379,0.0002222,2]
[334265396,1722875250253,-154.74467129,0.00025,2]
[334265397,1722875250273,-5452.32049857,0.00025,30]
[334265398,1722875250294,-197.06630447,0.00025991,2]
[334265399,1722875250315,-174.393801,0.00026016,2]
[334265400,1722875250340,-154.7,0.000266,31]
[334265401,1722875250364,-154.7,0.000266,31]
[334265402,1722875250389,-154.7,0.000266,31]
[334265403,1722875250414,-154.7,0.000266,31]
[334265404,1722875250458,-154.7,0.000266,31]
[334265405,1722875250483,-154.7,0.000266,31]
[334265406,1722875250508,-154.7,0.000266,31]
[334265407,1722875250534,-154.7,0.000266,31]
[334265408,1722875250559,-154.7,0.000266,31]
[334265409,1722875250582,-154.7,0.000266,31]
[334265410,1722875250606,-154.7,0.000266,31]
[334265411,1722875250626,-881.47696693,0.00026639,2]
[334265412,1722875250652,-151.0,0.0003,120]
[334265413,1722875250674,-151.0,0.0003,120]
[334265414,1722875250696,-254.63533274,0.00030394,4]
[334265415,1722875250717,-284.83809153,0.00030394,3]
[334265416,1722875250739,-188.91715167,0.00030394,2]
[334265417,1722875250759,-1699.36772011,0.00030394,30]
[334265418,1722875250783,-154.7,0.000305,31]
[334265419,1722875250808,-154.7,0.000305,31]
[334265420,1722875250834,-154.7,0.000305,31]
[334265421,1722875250859,-154.7,0.000305,31]
[334265422,1722875250883,-154.7,0.000305,31]
[334265423,1722875250906,-154.7,0.000305,31]
[334265424,1722875250930,-154.7,0.000305,31]
[334265425,1722875250974,-154.7,0.000305,31]
[334265426,1722875250998,-154.7,0.000305,31]
[334265427,1722875251022,-154.7,0.000305,31]
[334265428,1722875251046,-154.7,0.000305,31]
[334265429,1722875251067,-1566.72754589,0.00031081,2]
[334265430,1722875251176,-101.97446011,0.00031081,2]
[334265431,1722875251196,-197.06630447,0.00031081,2]
[334265432,1722875251217,-8025.05013937,0.00031171,3]
[334265433,1722875252093,-1757.97621956,0.00031171,3]
[334265434,1722875252136,-3201.96793693,0.00031171,3]
[334265437,1722875290033,564.54003318,0.00017269,7]
[334265439,1722875352693,-250.3410689,0.00017269,2]
[334265440,1722875352715,-186.18601251,0.000191,2]
[334265441,1722875352736,-214.0,0.000195,10]
[334265442,1722875352764,-248.55229944,0.00019999,2]
[334265443,1722875357123,-250.3410689,0.00017269,2]
[334265444,1722875357144,-51.44770056,0.00019999,2]
[334265445,1722875357165,-300.0,0.00019999,2]
[334265446,1722875357186,-2785.09451354,0.0002,2]
[334265447,1722875360217,-278.62699638,0.00017269,2]
[334265448,1722875360239,-168.964361,0.00019279,2]
[334265449,1722875360259,-18267.44545961,0.0002,2]
[334265450,1722875360285,-53061.85883973,0.0002,2]
[334265451,1722875360305,-558.16886587,0.0002,2]
[334265452,1722875360326,-100000.0,0.0002,2]
[334265453,1722875360346,-1854.50928641,0.0002,2]
[334265454,1722875360366,-4282.06413814,0.0002,2]
[334265455,1722875360387,-5371.45764749,0.00020551,15]
[334265456,1722875360408,-4245.62879989,0.0002066,7]
[334265457,1722875360429,-258.02057248,0.00021,2]
[334265458,1722875360450,-10127.33308476,0.00021,2]
[334265459,1722875360472,-232.5765766,0.00021,2]
[334265460,1722875360493,-237.41123286,0.0002217,2]
[334265461,1722875360514,-284.83809153,0.0003,3]
[334265462,1722875360536,-891.01396483,0.0003108,2]
[334265463,1722875360557,-304.13145597,0.00031171,2]
[334265464,1722875360579,-288.74,0.00031175,120]
[334265465,1722875360600,-500.0,0.0003118,2]
[334265466,1722875360622,-623.60028752,0.0003118,2]
[334265467,1722875360643,-204.41,0.00031185,120]
[334265468,1722875360666,-150.5,0.00031185,120]
[334265469,1722875360694,-307.12,0.000312,7]
[334265470,1722875360715,-938.44,0.000312,14]
[334265471,1722875360739,-4770.87,0.000312,14]
[334265472,1722875360761,-748.751591,0.00031507,120]
[334265473,1722875360783,-151.0,0.00032411,120]
[334265474,1722875360804,-1668.702006,0.00033286,2]
[334265475,1722875360825,-151.0,0.00033534,120]
[334265476,1722875360847,-300.224466,0.00034,6]
[334265477,1722875360868,-891.01396483,0.00034311,2]
[334265478,1722875360893,-154.7,0.000344,31]
[334265479,1722875360918,-154.7,0.000344,31]
[334265480,1722875360944,-154.7,0.000344,31]
[334265481,1722875361155,-154.7,0.000344,31]
[334265482,1722875361181,-154.7,0.000344,31]
[334265483,1722875361205,-154.7,0.000344,31]
[334265484,1722875361228,-154.7,0.000344,31]
[334265485,1722875361251,-154.7,0.000344,31]
[334265486,1722875361274,-154.7,0.000344,31]
[334265487,1722875361297,-154.7,0.000344,31]
[334265488,1722875361320,-154.7,0.000344,31]
[334265489,1722875361341,-170.159426,0.00034703,2]
[334265490,1722875361362,-2000.0,0.00034752,30]
[334265491,1722875361383,-151.0,0.00034822,120]
[334265492,1722875361404,-640.32095285,0.00035,7]
[334265493,1722875361429,-1668.702006,0.00035491,2]
[334265494,1722875361452,-18327.1912739,0.00036032,4]
[334265495,1722875361472,-5000.0,0.00036042,30]
[334265496,1722875361492,-938.44,0.000361,14]
[334265497,1722875361513,-4770.87,0.000361,14]
[334265498,1722875361534,-748.751591,0.00036758,120]
[334265499,1722875363126,-151.0,0.00037068,120]
[334265500,1722875363148,-151.0,0.00037233,120]
[334265501,1722875363169,-307.12,0.000373,30]
[334265502,1722875363189,-891.01396483,0.00037543,2]
[334265503,1722875363211,-1668.702006,0.00037695,2]
[334265504,1722875363231,-506.1011826,0.00037782,4]
[334265505,1722875364053,13000.0,0.00025,60]
[334265506,1722875368826,11750.25335139,0.0003117,3]
[334265507,1722875368849,2275.67506092,0.0003117,3]
[334265508,1722875368881,222.75158769,0.0003117,3]
[334265509,1722875379868,333.7404012,0.0003108,2]
[334265510,1722875381062,333.7404012,0.00033285,2]
[334265511,1722875381802,11873.9,0.0003117,3]
[334265512,1722875383118,333.7404012,0.0003549,2]
[334265513,1722875395226,9685.42419254,0.0003117,3]
[334265514,1722875395247,209.49580746,0.0003117,3]
[334265515,1722875407927,8245.76,0.0003117,3]
[334265516,1722875408553,634.61938969,0.00028674,2]
[334265517,1722875414281,151.0,0.0003,120]
[334265518,1722875414700,151.0,0.00033753,120]
[334265519,1722875417232,152.93,0.000266,31]
[334265520,1722875417304,152.93,0.000266,31]
[334265521,1722875417354,152.93,0.000266,31]
[334265522,1722875417404,152.93,0.000266,31]
[334265523,1722875417473,152.93,0.000266,31]
[334265524,1722875417536,152.93,0.000266,31]
[334265525,1722875417591,152.93,0.000266,31]
[334265526,1722875417653,152.93,0.000266,31]
[334265527,1722875417710,152.93,0.000266,31]
[334265528,1722875417775,152.93,0.000266,31]
[334265529,1722875417859,152.93,0.000266,31]
[334265530,1722875417890,152.93,0.000266,31]
[334265531,1722875417953,152.93,0.000266,31]
[334265532,1722875418004,152.93,0.000266,31]
[334265533,1722875418076,152.93,0.000266,31]
[334265534,1722875418171,152.93,0.000305,31]
[334265535,1722875418255,152.93,0.000305,31]
[334265536,1722875418320,152.93,0.000305,31]
[334265537,1722875418375,152.93,0.000305,31]
[334265538,1722875418655,152.93,0.000305,31]
[334265539,1722875418695,152.93,0.000305,31]
[334265540,1722875418730,152.93,0.000305,31]
[334265541,1722875418760,152.93,0.000305,31]
[334265542,1722875418795,152.93,0.000305,31]
[334265543,1722875418826,137.42323195,0.000305,31]
[334265544,1722875418852,15.50676805,0.000305,31]
[334265545,1722875418883,152.93,0.000305,31]
[334265546,1722875418914,152.93,0.000305,31]
[334265547,1722875418944,152.93,0.000305,31]
[334265548,1722875418988,152.93,0.000305,31]
[334265549,1722875419039,152.93,0.000305,31]
[334265550,1722875420918,6871.47,0.0003117,3]
[334265551,1722875423363,374.375795,0.00031507,120]
[334265552,1722875431789,500.0,0.00031179,2]
[334265553,1722875431848,286.52020126,0.00031179,2]
[334265583,1722875433348,-355.77421521,0.0003118,60]
[334265584,1722875433360,-3059.2,0.0003118,60]
[334265585,1722875433427,292.60647016,0.0003117,3]
[334265606,1722875438877,-260.5699995,0.00027395,10]
[334265612,1722875439995,-1739.4300005,0.00027395,10]
[334265613,1722875440005,-5433.61352984,0.0003117,3]
[334265614,1722875440025,-115262.74835637,0.0003118,60]
[334265615,1722875440037,-277695.66132953,0.0003118,60]
[334265616,1722875440047,-150.0,0.0003118,14]
[334265617,1722875440057,-150.0,0.0003118,14]
[334265618,1722875440067,-199.74,0.0003118,14]
[334265619,1722875440077,-19169.99358302,0.0003118,7]
[334265620,1722875440087,-5000.0,0.0003118,4]
[334265621,1722875440096,-152.93,0.000344,31]
[334265622,1722875440106,-152.93,0.000344,31]
[334265623,1722875440116,-152.93,0.000344,31]
[334265624,1722875440126,-152.93,0.000344,31]
[334265625,1722875440135,-152.93,0.000344,31]
[334265627,1722875440144,-152.93,0.000344,31]
[334265628,1722875440154,-152.93,0.000344,31]
[334265629,1722875440164,-152.93,0.000344,31]
[334265630,1722875440173,-152.93,0.000344,31]
[334265631,1722875440183,-152.93,0.000344,31]
[334265632,1722875440192,-152.93,0.000344,31]
[334265633,1722875440201,-152.93,0.000344,31]
[334265634,1722875440211,-152.93,0.000344,31]
[334265635,1722875440221,-152.93,0.000344,31]
[334265637,1722875440230,-152.93,0.000344,31]
[334265638,1722875440240,-374.375795,0.00036758,120]
[334265639,1722875440250,-151.0,0.00037507,120]
[334265640,1722875440264,-333.7404012,0.00037695,2]
[334265641,1722875440276,-284.83809153,0.00037781,3]
[334265642,1722875440286,-152.93,0.000383,31]
[334265643,1722875440296,-152.93,0.000383,31]
[334265644,1722875440306,-152.93,0.000383,31]
[334265645,1722875440315,-152.93,0.000383,31]
[334265646,1722875440325,-152.93,0.000383,31]
[334265647,1722875440335,-152.93,0.000383,31]
[334265648,1722875440344,-152.93,0.000383,31]
[334265649,1722875440354,-152.93,0.000383,31]
[334265650,1722875440363,-152.93,0.000383,31]
[334265651,1722875440373,-152.93,0.000383,31]
[334265652,1722875440383,-152.93,0.000383,31]
[334265653,1722875440393,-152.93,0.000383,31]
[334265654,1722875440402,-152.93,0.000383,31]
[334265655,1722875440412,-152.93,0.000383,31]
[334265656,1722875440422,-152.93,0.000383,31]
[334265657,1722875440431,-3868.0,0.00039,120]
[334265658,1722875440441,-151.0,0.00039644,120]
[334265659,1722875440451,-368.87450422,0.000399,2]
[334265660,1722875440461,-333.7404012,0.000399,2]
[334265661,1722875440470,-200.0,0.00039973,2]
[334265662,1722875440480,-73308.7650956,0.0003999,5]
[334265663,1722875440490,-5000.0,0.0004,30]
[334265664,1722875440499,-170930.87395405,0.0004,2]
[334265665,1722875440514,-3868.0,0.0004,120]
[334265666,1722875440527,-3868.0,0.0004,120]
[334265667,1722875440537,-200.0,0.0004,2]
[334265668,1722875440547,-4418.09,0.0004,14]
[334265669,1722875440556,-507.0,0.00040219,2]
[334265670,1722875440566,-163.02554165,0.00040673,5]
[334265671,1722875440576,-200.0,0.00040673,5]
[334265672,1722875440586,-109963.147643,0.0004069,5]
[334265673,1722875440595,-300047.20767427,0.000407,120]
[334265674,1722875440605,-938.44,0.000407,14]
[334265675,1722875440614,-4450.59041749,0.000408,30]
[334265676,1722875440624,-500.0,0.00040821,120]
[334265677,1722875440634,-2500.0,0.000409,120]
[334265678,1722875440644,-18327.1912739,0.0004099,5]
[334265679,1722875440653,-5000.0,0.00041,41]
[334265680,1722875440664,-3868.0,0.00041,120]
[334265681,1722875440674,-3868.0,0.00041,120]
[334265682,1722875440684,-3989.26,0.00041,120]
[334265683,1722875440694,-5075.0,0.00041,120]
[334265684,1722875440709,-13293.08792773,0.00041095,15]
[334265685,1722875440719,-77.4309605,0.00041095,31]
[334265686,1722875440729,-500.0,0.00041095,31]
[334265687,1722875440738,-161.34650055,0.00041095,31]
[334265688,1722875440749,-500.0,0.00041095,31]
[334265689,1722875440762,-500.0,0.00041095,31]
[334265690,1722875440779,-500.0,0.00041095,31]
[334265691,1722875440788,-500.0,0.00041095,31]
[334265692,1722875440798,-500.0,0.00041095,31]
[334265693,1722875440807,-500.0,0.00041095,31]
[334265694,1722875440816,-500.0,0.00041095,31]
[334265695,1722875440826,-500.0,0.00041095,31]
[334265696,1722875440835,-500.0,0.00041095,31]
[334265697,1722875440844,-500.0,0.00041095,31]
[334265698,1722875440854,-500.0,0.00041095,31]
[334265699,1722875440863,-500.0,0.00041095,31]
[334265700,1722875440874,-500.0,0.00041095,31]
[334265701,1722875440883,-500.0,0.00041095,31]
[334265702,1722875440892,-500.0,0.00041095,31]
[334265703,1722875440902,-500.0,0.00041095,31]
[334265704,1722875440911,-500.0,0.00041095,31]
[334265705,1722875440921,-500.0,0.00041095,31]
[334265706,1722875440930,-500.0,0.00041095,31]
[334265707,1722875440940,-500.0,0.00041095,31]
[334265708,1722875440949,-500.0,0.00041095,31]
[334265709,1722875440958,-500.0,0.00041095,31]
[334265710,1722875440968,-500.0,0.00041095,31]
[334265711,1722875440977,-500.0,0.00041095,31]
[334265712,1722875440986,-500.0,0.00041095,31]
[334265713,1722875440995,-500.0,0.00041095,31]
[334265714,1722875441005,-500.0,0.00041095,31]
[334265715,1722875441024,-500.0,0.00041095,31]
[334265716,1722875441034,-500.0,0.00041095,31]
[334265717,1722875441043,-500.0,0.00041095,31]
[334265718,1722875441052,-500.0,0.00041095,31]
[334265719,1722875441063,-500.0,0.00041095,31]
[334265720,1722875441072,-500.0,0.00041095,31]
[334265721,1722875441083,-500.0,0.00041095,31]
[334265722,1722875441092,-500.0,0.00041095,31]
[334265723,1722875441101,-500.0,0.00041095,31]
[334265724,1722875441111,-500.0,0.00041095,31]
[334265725,1722875441120,-500.0,0.00041095,31]
[334265726,1722875441130,-500.0,0.00041095,31]
[334265727,1722875441139,-500.0,0.00041095,31]
[334265728,1722875441148,-500.0,0.00041095,31]
[334265729,1722875441158,-500.0,0.00041095,31]
[334265730,1722875441167,-500.0,0.00041095,31]
[334265731,1722875441176,-500.0,0.00041095,31]
[334265732,1722875441186,-500.0,0.00041095,31]
[334265733,1722875441196,-500.0,0.00041095,31]
[334265734,1722875441206,-500.0,0.00041095,31]
[334265735,1722875441216,-500.0,0.00041095,31]
[334265736,1722875441226,-500.0,0.00041095,31]
[334265737,1722875441236,-500.0,0.00041095,31]
[334265738,1722875441245,-500.0,0.00041095,31]
[334265739,1722875441255,-500.0,0.00041095,31]
[334265740,1722875441275,-500.0,0.00041095,31]
[334265741,1722875441285,-500.0,0.00041095,31]
[334265742,1722875441294,-500.0,0.00041095,31]
[334265743,1722875441304,-523.39975054,0.00041095,31]
[334265744,1722875441314,-500.0,0.00041095,31]
[334265745,1722875441324,-623.21351035,0.00041095,31]
[334265746,1722875441334,-500.0,0.00041095,31]
[334265747,1722875441344,-500.0,0.00041095,31]
[334265748,1722875441353,-500.0,0.00041095,31]
[334265749,1722875441363,-500.0,0.00041095,31]
[334265750,1722875441373,-563.63896469,0.00041095,31]
[334265751,1722875441383,-500.0,0.00041095,31]
[334265752,1722875441393,-500.0,0.00041095,31]
[334265753,1722875441403,-210.58092546,0.00041095,31]
[334265754,1722875441412,-500.0,0.00041095,31]
[334265755,1722875441421,-500.0,0.00041095,31]
[334265756,1722875441431,-500.0,0.00041095,31]
[334265757,1722875441442,-500.0,0.00041095,31]
[334265758,1722875441451,-500.0,0.00041095,31]
[334265759,1722875441460,-500.0,0.00041095,31]
[334265760,1722875441472,-500.0,0.00041095,31]
[334265761,1722875441482,-500.0,0.00041095,31]
[334265762,1722875441492,-500.0,0.00041095,31]
[334265763,1722875441502,-500.0,0.00041095,31]
[334265764,1722875441522,-500.0,0.00041095,31]
[334265765,1722875441532,-556.55546111,0.00041095,20]
[334265766,1722875441541,-500.0,0.00041095,31]
[334265767,1722875441551,-500.0,0.00041095,31]
[334265768,1722875441560,-500.0,0.00041095,31]
[334265769,1722875441570,-500.0,0.00041095,31]
[334265770,1722875441579,-500.0,0.00041095,31]
[334265771,1722875441589,-500.0,0.00041095,31]
[334265772,1722875441598,-500.0,0.00041095,31]
[334265773,1722875441607,-500.0,0.00041095,31]
[334265774,1722875441617,-500.0,0.00041095,31]
[334265775,1722875441626,-500.0,0.00041095,31]
[334265776,1722875441635,-500.0,0.00041095,31]
[334265777,1722875441645,-500.0,0.00041095,31]
[334265778,1722875441654,-214.31308632,0.00041095,31]
[334265779,1722875441664,-500.0,0.00041095,31]
[334265780,1722875441674,-500.0,0.00041095,31]
[334265781,1722875441683,-500.0,0.00041095,31]
[334265782,1722875441693,-500.0,0.00041095,31]
[334265783,1722875441708,-500.0,0.00041095,31]
[334265784,1722875441717,-500.0,0.00041095,31]
[334265785,1722875441727,-500.0,0.00041095,31]
[334265786,1722875441736,-500.0,0.00041095,31]
[334265787,1722875441746,-500.0,0.00041095,31]
[334265788,1722875441755,-500.0,0.00041095,31]
[334265789,1722875441775,-505.57368615,0.00041095,31]
[334265790,1722875441784,-500.0,0.00041095,31]
[334265791,1722875441796,-500.0,0.00041095,31]
[334265792,1722875441806,-500.0,0.00041095,31]
[334265793,1722875441815,-500.0,0.00041095,31]
[334265794,1722875441825,-500.0,0.00041095,31]
[334265795,1722875441834,-500.0,0.00041095,31]
[334265796,1722875441844,-502.33841024,0.00041095,31]
[334265797,1722875441854,-345.75199749,0.00041095,31]
[334265798,1722875441863,-1165.0,0.00041095,31]
[334265799,1722875441873,-500.0,0.00041095,31]
[334265800,1722875441882,-500.0,0.00041095,31]
[334265801,1722875441891,-501.35822863,0.00041095,31]
[334265802,1722875441902,-500.0,0.00041095,31]
[334265803,1722875441912,-500.0,0.00041095,21]